fUSD/lending_fUSD_20250522
["ID","MTS","AMOUNT","RATE_DAILY","PERIOD"]
[361926674,1747894248706,-420.0,0.00032876,5]
[361926675,1747894248716,-587.91,0.00032876,5]
[361926676,1747894248726,-420.0,0.00032876,5]
[361926677,1747894248736,-422.04221766,0.00032876,5]
[361926678,1747894248746,-421.30644519,0.00032876,5]
[361926679,1747894248757,-598.15,0.00032876,5]
[361926680,1747894248767,-420.0,0.00032876,5]
[361926681,1747894248778,-905.64,0.00032876,5]
[361926682,1747894248789,-420.0,0.00032876,5]
[361926683,1747894248799,-1003.18,0.00032876,5]
[361926684,1747894248810,-478.101106,0.00032876,5]
[361926685,1747894248820,-154.327813,0.00032876,7]
[361926686,1747894248830,-421.26953759,0.00032876,5]
[361926687,1747894248840,-421.46096577,0.00032876,5]
[361926688,1747894248850,-421.2723371,0.00032876,5]
[361926689,1747894248860,-420.0,0.00032876,5]
[361926690,1747894248870,-420.0,0.00032876,5]
[361926691,1747894248880,-420.0,0.00032876,5]
[361926692,1747894248890,-420.0,0.00032876,5]
[361926693,1747894248900,-166.044029,0.00032876,7]
[361926694,1747894248910,-421.06435977,0.00032876,5]
[361926695,1747894248920,-420.0,0.00032876,5]
[361926696,1747894248929,-420.0,0.00032876,5]
[361926697,1747894248939,-809.9,0.00032876,5]
[361926698,1747894248949,-420.0,0.00032876,5]
[361926699,1747894248959,-420.0,0.00032876,5]
[361926700,1747894248970,-420.0,0.00032876,5]
[361926701,1747894248980,-151.0,0.00032876,7]
[361926702,1747894248990,-420.0,0.00032876,5]
[361926703,1747894249000,-422.09090423,0.00032876,5]
[361926704,1747894249011,-420.0,0.00032876,5]
[361926705,1747894249021,-420.0,0.00032876,5]
[361926706,1747894249032,-666.63,0.00032876,5]
[361926707,1747894249042,-420.0,0.00032876,5]
[361926708,1747894249052,-853.32,0.00032876,5]
[361926709,1747894249062,-420.0,0.00032876,5]
[361926710,1747894249072,-420.0,0.00032876,5]
[361926711,1747894249082,-420.0,0.00032876,5]
[361926712,1747894249092,-420.0,0.00032876,5]
[361926713,1747894249102,-597.34,0.00032876,5]
[361926714,1747894249114,-421.58518549,0.00032876,5]
[361926715,1747894249124,-420.0,0.00032876,5]
[361926716,1747894249135,-420.0,0.00032876,5]
[361926717,1747894249147,-420.0,0.00032876,5]
[361926718,1747894249157,-845.93,0.00032876,5]
[361926719,1747894249167,-173.31830407,0.00032876,5]
[361926720,1747894249178,-795.19,0.00032876,5]
[361926721,1747894249187,-1572.05,0.00032876,5]
[361926722,1747894249197,-511.95,0.00032876,5]
[361926723,1747894249207,-420.0,0.00032876,5]
[361926724,1747894249218,-930.8,0.00032876,5]
[361926725,1747894249227,-420.0,0.00032876,5]
[361926726,1747894249237,-420.0,0.00032876,5]
[361926727,1747894249247,-882.46,0.00032876,5]
[361926728,1747894249256,-1223.3,0.00032876,5]
[361926729,1747894249267,-420.0,0.00032876,5]
[361926730,1747894249278,-151.0,0.00032876,7]
[361926731,1747894249288,-162.273178,0.00032876,7]
[361926732,1747894249299,-431.36,0.00032876,5]
[361926733,1747894249309,-420.59174643,0.00032876,5]
[361926734,1747894249318,-420.0,0.00032876,5]
[361926735,1747894249328,-420.0,0.00032876,5]
[361926736,1747894249338,-532.24,0.00032876,5]
[361926737,1747894249348,-420.0,0.00032876,5]
[361926738,1747894249358,-420.0,0.00032876,5]
[361926739,1747894249368,-420.0,0.00032876,5]
[361926740,1747894249378,-1338.35,0.00032876,5]
[361926741,1747894249388,-420.0,0.00032876,5]
[361926742,1747894249398,-420.0,0.00032876,5]
[361926743,1747894249408,-615.37,0.00032876,5]
[361926744,1747894249418,-206.99592864,0.00032876,5]
[361926745,1747894249428,-667.71,0.00032876,5]
[361926746,1747894249438,-420.0,0.00032876,5]
[361926747,1747894249448,-420.0,0.00032876,5]
[361926748,1747894249457,-420.0,0.00032876,5]
[361926749,1747894249467,-485.91,0.00032876,5]
[361926750,1747894249477,-577.24,0.00032876,5]
[361926751,1747894249487,-421.85935734,0.00032876,5]
[361926752,1747894249497,-420.0,0.00032876,5]
[361926753,1747894249506,-811.38,0.00032876,5]
[361926754,1747894249516,-420.0,0.00032876,5]
[361926755,1747894249526,-1773.83,0.00032876,5]
[361926756,1747894249535,-420.0,0.00032876,5]
[361926757,1747894249545,-420.0,0.00032876,5]
[361926758,1747894249555,-676.08,0.00032876,5]
[361926759,1747894249565,-420.0,0.00032876,5]
[361926760,1747894249575,-406.69763531,0.00032876,5]
[361926761,1747894249584,-420.0,0.00032876,5]
[361926762,1747894249594,-420.0,0.00032876,5]
[361926763,1747894249604,-420.0,0.00032876,5]
[361926764,1747894249614,-547.86,0.00032876,5]
[361926765,1747894249624,-650.06,0.00032876,5]
[361926766,1747894249634,-467.99,0.00032876,5]
[361926767,1747894249644,-551.77,0.00032876,5]
[361926768,1747894249654,-443.12912505,0.00032876,5]
[361926769,1747894249663,-420.0,0.00032876,5]
[361926770,1747894249673,-782.58,0.00032876,5]
[361926771,1747894249682,-392.06643874,0.00032876,5]
[361926772,1747894249692,-1006.54,0.00032876,5]
[361926773,1747894249702,-420.0,0.00032876,5]
[361926774,1747894249712,-420.0,0.00032876,5]
[361926775,1747894249722,-1055.0,0.00032876,5]
[361926776,1747894249731,-420.0,0.00032876,5]
[361926777,1747894249741,-521.0,0.00032876,5]
[361926778,1747894249751,-701.65,0.00032876,5]
[361926779,1747894249760,-420.0,0.00032876,5]
[361926780,1747894249770,-439.77,0.00032876,5]
[361926781,1747894249780,-420.82579771,0.00032876,5]
[361926782,1747894249790,-420.0,0.00032876,5]
[361926783,1747894249801,-420.0,0.00032876,5]
[361926784,1747894249811,-404.90572013,0.00032876,5]
[361926785,1747894249821,-151.0,0.00032876,7]
[361926786,1747894249831,-420.0,0.00032876,5]
[361926787,1747894249840,-420.0,0.00032876,5]
[361926788,1747894249852,-151.0,0.00032876,7]
[361926789,1747894249862,-420.0,0.00032876,5]
[361926790,1747894249872,-577.94,0.00032876,5]
[361926791,1747894249882,-420.0,0.00032876,5]
[361926792,1747894249892,-420.0,0.00032876,5]
[361926793,1747894249902,-420.0,0.00032876,5]
[361926794,1747894249912,-531.55481167,0.00032876,5]
[361926795,1747894249924,-1067.26,0.00032876,5]
[361926796,1747894249935,-529.12,0.00032876,5]
[361926797,1747894249944,-422.11494322,0.00032876,5]
[361926798,1747894249954,-1678.43,0.00032876,5]
[361926799,1747894249965,-420.0,0.00032876,5]
[361926800,1747894249975,-420.0,0.00032876,5]
[361926801,1747894249985,-632.82,0.00032876,5]
[361926802,1747894249995,-420.0,0.00032876,5]
[361926803,1747894250005,-420.53950538,0.00032876,5]
[361926804,1747894250014,-420.0,0.00032876,5]
[361926805,1747894250025,-420.0,0.00032876,5]
[361926806,1747894250035,-420.0,0.00032876,5]
[361926807,1747894250045,-1393.82,0.00032876,5]
[361926808,1747894250054,-420.0,0.00032876,5]
[361926809,1747894250064,-420.0,0.00032876,5]
[361926810,1747894250073,-422.41868996,0.00032876,5]
[361926811,1747894250084,-420.0,0.00032876,5]
[361926812,1747894250093,-420.0,0.00032876,5]
[361926813,1747894250104,-204.5468073,0.00032876,5]
[361926814,1747894250115,-186.04280576,0.00032876,5]
[361926815,1747894250125,-420.0,0.00032876,5]
[361926816,1747894250138,-420.0,0.00032876,5]
[361926817,1747894250148,-1459.76,0.00032876,5]
[361926818,1747894250160,-420.0,0.00032876,5]
[361926819,1747894250170,-1282.13,0.00032876,5]
[361926820,1747894250181,-1424.63,0.00032876,5]
[361926821,1747894250191,-420.0,0.00032876,5]
[361926822,1747894250200,-484.93,0.00032876,5]
[361926823,1747894250210,-1610.52,0.00032876,5]
[361926824,1747894250220,-609.25,0.00032876,5]
[361926825,1747894250230,-971.26,0.00032876,5]
[361926826,1747894250240,-646.77,0.00032876,5]
[361926827,1747894250250,-640.28,0.00032876,5]
[361926828,1747894250260,-431.46,0.00032876,5]
[361926829,1747894250269,-429.63,0.00032876,5]
[361926830,1747894250280,-420.0,0.00032876,5]
[361926831,1747894250290,-420.0,0.00032876,5]
[361926832,1747894250301,-420.0,0.00032876,5]
[361926833,1747894250311,-420.0,0.00032876,5]
[361926834,1747894250321,-156.348794,0.00032876,7]
[361926835,1747894250331,-588.9,0.00032876,5]
[361926836,1747894250341,-420.0,0.00032876,5]
[361926837,1747894250351,-420.0,0.00032876,5]
[361926838,1747894250362,-588.71,0.00032876,5]
[361926839,1747894250372,-435.75961782,0.00032876,5]
[361926840,1747894250383,-420.0,0.00032876,5]
[361926841,1747894250392,-420.0,0.00032876,5]
[361926842,1747894250403,-420.0,0.00032876,5]
[361926843,1747894250413,-420.0,0.00032876,5]
[361926844,1747894250423,-487.59,0.00032876,5]
[361926845,1747894250433,-1190.24,0.00032876,5]
[361926846,1747894250445,-986.96,0.00032876,5]
[361926847,1747894250455,-1086.63,0.00032876,5]
[361926848,1747894250465,-581.01,0.00032876,5]
[361926849,1747894250474,-420.0,0.00032876,5]
[361926850,1747894250484,-420.0,0.00032876,5]
[361926851,1747894250493,-446.98,0.00032876,5]
[361926852,1747894250503,-420.0,0.00032876,5]
[361926853,1747894250514,-536.48,0.00032876,5]
[361926854,1747894250524,-420.0,0.00032876,5]
[361926855,1747894250534,-780.24,0.00032876,5]
[361926856,1747894250544,-420.0,0.00032876,5]
[361926857,1747894250555,-424.12343412,0.00032876,5]
[361926858,1747894250565,-420.0,0.00032876,5]
[361926859,1747894250575,-420.0,0.00032876,5]
[361926860,1747894250584,-1230.2,0.00032876,5]
[361926861,1747894250593,-420.0,0.00032876,5]
[361926862,1747894250603,-2809.28,0.00032876,3]
[361926863,1747894250612,-420.0,0.00032876,5]
[361926864,1747894250622,-420.0,0.00032876,5]
[361926865,1747894250632,-420.0,0.00032876,5]
[361926866,1747894250641,-544.86913915,0.00032876,5]
[361926867,1747894250651,-693.2,0.00032876,5]
[361926868,1747894250660,-479.1918883,0.00032876,5]
[361926869,1747894250670,-423.00915774,0.00032876,5]
[361926870,1747894250679,-715.24,0.00032876,5]
[361926871,1747894250690,-885.99,0.00032876,5]
[361926872,1747894250701,-516.88,0.00032876,5]
[361926873,1747894250711,-600.37,0.00032876,5]
[361926874,1747894250721,-420.0,0.00032876,5]
[361926875,1747894250731,-603.25,0.00032876,5]
[361926876,1747894250740,-420.0,0.00032876,5]
[361926877,1747894250750,-420.0,0.00032876,5]
[361926878,1747894250759,-1321.32,0.00032876,5]
[361926879,1747894250769,-420.0,0.00032876,5]
[361926880,1747894250779,-420.0,0.00032876,5]
[361926881,1747894250789,-1101.77,0.00032876,5]
[361926882,1747894250799,-484.30190254,0.00032876,5]
[361926883,1747894250810,-420.0,0.00032876,5]
[361926884,1747894250819,-467.91,0.00032876,5]
[361926885,1747894250829,-420.0,0.00032876,5]
[361926886,1747894250840,-420.0,0.00032876,5]
[361926887,1747894250850,-1485.74,0.00032876,5]
[361926888,1747894250860,-420.0,0.00032876,5]
[361926889,1747894250870,-151.0,0.00032876,7]
[361926890,1747894250879,-151.0,0.00032876,7]
[361926891,1747894250889,-206.63705817,0.00032876,5]
[361926892,1747894250899,-420.0,0.00032876,5]
[361926893,1747894250908,-420.0,0.00032876,5]
[361926894,1747894250918,-420.0,0.00032876,5]
[361926895,1747894250928,-534.42,0.00032876,5]
[361926896,1747894250938,-420.0,0.00032876,5]
[361926897,1747894250947,-420.0,0.00032876,5]
[361926898,1747894250958,-534.32689253,0.00032876,5]
[361926899,1747894250967,-571.54,0.00032876,5]
[361926900,1747894250977,-420.0,0.00032876,5]
[361926901,1747894250987,-420.0,0.00032876,5]
[361926902,1747894250997,-420.0,0.00032876,5]
[361926903,1747894251006,-420.0,0.00032876,5]
[361926904,1747894251016,-151.0,0.00032876,7]
[361926905,1747894251026,-731.77,0.00032876,5]
[361926906,1747894251036,-420.0,0.00032876,5]
[361926907,1747894251046,-420.66579228,0.00032876,5]
[361926908,1747894251056,-154.477661,0.00032876,7]
[361926909,1747894251066,-420.0,0.00032876,5]
[361926910,1747894251075,-533.93,0.00032876,5]
[361926911,1747894251085,-420.0,0.00032876,5]
[361926912,1747894251095,-420.0,0.00032876,5]
[361926913,1747894251104,-432.32638602,0.00032876,5]
[361926914,1747894251114,-495.54,0.00032876,5]
[361926915,1747894251124,-530.84213763,0.00032876,5]
[361926916,1747894251135,-1514.29,0.00032876,5]
[361926917,1747894251148,-420.0,0.00032876,5]
[361926918,1747894251159,-420.0,0.00032876,5]
[361926919,1747894251168,-501.19,0.00032876,5]
[361926920,1747894251179,-1105.59,0.00032876,5]
[361926921,1747894251188,-420.0,0.00032876,5]
[361926922,1747894251198,-420.0,0.00032876,5]
[361926923,1747894251208,-717.09,0.00032876,5]
[361926924,1747894251218,-420.0,0.00032876,5]
[361926925,1747894251228,-959.9,0.00032876,5]
[361926926,1747894251238,-420.0,0.00032876,5]
[361926927,1747894251248,-598.14,0.00032876,5]
[361926928,1747894251258,-420.0,0.00032876,5]
[361926929,1747894251267,-420.0,0.00032876,5]
[361926930,1747894251277,-420.0,0.00032876,5]
[361926931,1747894251286,-433.79238719,0.00032876,5]
[361926932,1747894251296,-478.3,0.00032876,5]
[361926933,1747894251306,-420.0,0.00032876,5]
[361926934,1747894251316,-420.0,0.00032876,5]
[361926935,1747894251325,-278.71545539,0.00032876,5]
[361926936,1747894251335,-423.60992956,0.00032876,5]
[361926937,1747894251344,-420.0,0.00032876,5]
[361926938,1747894251354,-420.0,0.00032876,5]
[361926939,1747894251363,-440.41,0.00032876,5]
[361926940,1747894251372,-299.76367169,0.00032876,5]
[361926941,1747894251382,-420.0,0.00032876,5]
[361926942,1747894251391,-1642.58,0.00032876,5]
[361926943,1747894251401,-633.82,0.00032876,5]
[361926944,1747894251410,-420.0,0.00032876,5]
[361926945,1747894251420,-485.1,0.00032876,5]
[361926946,1747894251429,-1216.18,0.00032876,5]
[361926947,1747894251439,-151.0,0.00032876,7]
[361926948,1747894251449,-1479.15,0.00032876,5]
[361926949,1747894251458,-151.0,0.00032876,7]
[361926950,1747894251468,-965.24,0.00032876,5]
[361926951,1747894251477,-420.0,0.00032876,5]
[361926952,1747894251487,-420.0,0.00032876,5]
[361926953,1747894251496,-364.63173367,0.00032876,5]
[361926954,1747894251505,-531.50472257,0.00032876,5]
[361926955,1747894251515,-420.0,0.00032876,5]
[361926956,1747894251524,-420.0,0.00032876,5]
[361926957,1747894251535,-420.0,0.00032876,5]
[361926958,1747894251544,-421.28430458,0.00032876,5]
[361926959,1747894251554,-676.03,0.00032876,5]
[361926960,1747894251563,-571.05,0.00032876,5]
[361926961,1747894251574,-176.59851872,0.00032876,3]
[361926962,1747894251584,-421.9013205,0.00032876,5]
[361926963,1747894251593,-420.0,0.00032876,5]
[361926964,1747894251603,-420.0,0.00032876,5]
[361926965,1747894251612,-422.06118411,0.00032876,5]
[361926966,1747894251623,-420.0,0.00032876,5]
[361926967,1747894251632,-540.19,0.00032876,5]
[361926968,1747894251642,-420.0,0.00032876,5]
[361926969,1747894251651,-1414.17,0.00032876,5]
[361926970,1747894251660,-420.0,0.00032876,5]
[361926971,1747894251670,-812.05,0.00032876,5]
[361926972,1747894251679,-420.0,0.00032876,5]
[361926973,1747894251689,-162.25291515,0.00032876,5]
[361926974,1747894251698,-793.75,0.00032876,5]
[361926975,1747894251708,-481.08,0.00032876,5]
[361926976,1747894251717,-420.0,0.00032876,5]
[361926977,1747894251727,-422.81893365,0.00032876,5]
[361926978,1747894251736,-862.64,0.00032876,5]
[361926979,1747894251745,-537.17,0.00032876,5]
[361926980,1747894251755,-420.0,0.00032876,5]
[361926981,1747894251764,-516.35,0.00032876,5]
[361926982,1747894251774,-420.0,0.00032876,5]
[361926983,1747894251785,-420.0,0.00032876,5]
[361926984,1747894251794,-460.35,0.00032876,5]
[361926985,1747894251804,-485.83790422,0.00032876,5]
[361926986,1747894251814,-362.88142935,0.00032876,5]
[361926987,1747894251824,-168.677532,0.00032876,5]
[361926988,1747894251834,-709.79,0.00032876,5]
[361926989,1747894251844,-938.04,0.00032876,5]
[361926990,1747894251854,-1002.33,0.00032876,5]
[361926991,1747894251863,-420.0,0.00032876,5]
[361926992,1747894251873,-422.59637636,0.00032876,5]
[361926993,1747894251882,-420.0,0.00032876,5]
[361926994,1747894251892,-1140.46,0.00032876,5]
[361926995,1747894251901,-420.0,0.00032876,5]
[361926996,1747894251911,-420.0,0.00032876,5]
[361926997,1747894251921,-1632.67,0.00032876,5]
[361926998,1747894251930,-420.0,0.00032876,5]
[361926999,1747894251940,-1027.08,0.00032876,5]
[361927000,1747894251950,-1312.51,0.00032876,5]
[361927001,1747894251959,-420.0,0.00032876,5]
[361927002,1747894251969,-420.0,0.00032876,5]
[361927003,1747894251978,-1793.85,0.00032876,5]
[361927004,1747894251988,-420.0,0.00032876,5]
[361927005,1747894251997,-200.18413577,0.00032876,2]
[361927006,1747894252006,-316.25354412,0.00032876,5]
[361927007,1747894252016,-837.71,0.00032876,5]
[361927008,1747894252025,-420.0,0.00032876,5]
[361927009,1747894252036,-421.32885401,0.00032876,5]
[361927010,1747894252046,-420.0,0.00032876,5]
[361927011,1747894252056,-420.0,0.00032876,5]
[361927012,1747894252066,-429.11,0.00032876,5]
[361927013,1747894252077,-643.39,0.00032876,5]
[361927014,1747894252087,-815.82,0.00032876,5]
[361927015,1747894252096,-420.0,0.00032876,5]
[361927016,1747894252107,-1149.79,0.00032876,5]
[361927017,1747894252116,-420.91,0.00032876,5]
[361927018,1747894252125,-552.17,0.00032876,5]
[361927019,1747894252135,-552.17,0.00032876,5]
[361927020,1747894252376,-552.17,0.00032876,5]
[361927021,1747894252416,-421.77561102,0.00032876,5]
[361927022,1747894252426,-552.17,0.00032876,5]
[361927023,1747894252435,-552.17,0.00032876,5]
[361927024,1747894252445,-552.17,0.00032876,5]
[361927025,1747894252454,-552.17,0.00032876,5]
[361927026,1747894252464,-552.17,0.00032876,5]
[361927027,1747894252473,-552.17,0.00032876,5]
[361927028,1747894252483,-1467.08,0.00032876,5]
[361927029,1747894252493,-1146.04,0.00032876,5]
[361927030,1747894252503,-420.0,0.00032876,5]
[361927031,1747894252513,-589.76,0.00032876,5]
[361927032,1747894252523,-810.39,0.00032876,5]
[361927033,1747894252533,-420.0,0.00032876,5]
[361927034,1747894252543,-420.0,0.00032876,5]
[361927035,1747894252553,-420.0,0.00032876,5]
[361927036,1747894252563,-498.28,0.00032876,5]
[361927037,1747894252573,-420.0,0.00032876,5]
[361927038,1747894252583,-420.0,0.00032876,5]
[361927039,1747894252593,-420.0,0.00032876,5]
[361927040,1747894252602,-420.0,0.00032876,5]
[361927041,1747894252612,-420.0,0.00032876,5]
[361927042,1747894252622,-562.24,0.00032876,5]
[361927043,1747894252631,-420.0,0.00032876,5]
[361927044,1747894252641,-420.0,0.00032876,5]
[361927045,1747894252652,-420.0,0.00032876,5]
[361927046,1747894252662,-685.47,0.00032876,5]
[361927047,1747894252672,-1354.68,0.00032876,5]
[361927048,1747894252682,-420.0,0.00032876,5]
[361927049,1747894252692,-1253.07,0.00032876,5]
[361927050,1747894252702,-331.470837,0.00032876,7]
[361927051,1747894252711,-420.53666583,0.00032876,5]
[361927052,1747894252721,-331.470837,0.00032876,7]
[361927053,1747894252731,-401.06662812,0.00032876,5]
[361927054,1747894252741,-803.14,0.00032876,5]
[361927055,1747894252751,-420.0,0.00032876,5]
[361927056,1747894252761,-631.94,0.00032876,5]
[361927057,1747894252771,-424.51433693,0.00032876,5]
[361927058,1747894252780,-1294.24,0.00032876,5]
[361927059,1747894252790,-428.6,0.00032876,5]
[361927060,1747894252800,-937.2,0.00032876,5]
[361927061,1747894252810,-331.470837,0.00032876,7]
[361927062,1747894252819,-848.63,0.00032876,5]
[361927063,1747894252830,-190.462529,0.00032876,7]
[361927064,1747894252840,-331.470837,0.00032876,7]
[361927065,1747894252850,-837.06,0.00032876,5]
[361927066,1747894252860,-190.462529,0.00032876,7]
[361927067,1747894252871,-420.0,0.00032876,5]
[361927068,1747894252881,-1744.55,0.00032876,5]
[361927069,1747894252891,-422.14226291,0.00032876,5]
[361927070,1747894252901,-833.48,0.00032876,5]
[361927071,1747894252911,-234.538558,0.00032876,5]
[361927072,1747894252921,-190.462529,0.00032876,7]
[361927073,1747894252932,-422.05448496,0.00032876,5]
[361927074,1747894252942,-1162.4,0.00032876,5]
[361927075,1747894252953,-190.462529,0.00032876,7]
[361927076,1747894252963,-420.0,0.00032876,5]
[361927077,1747894252973,-622.56,0.00032876,5]
[361927078,1747894252983,-151.0,0.00032876,7]
[361927079,1747894252992,-420.0,0.00032876,5]
[361927080,1747894253002,-420.0,0.00032876,5]
[361927081,1747894253012,-781.53,0.00032876,5]
[361927082,1747894253021,-420.0,0.00032876,5]
[361927083,1747894253031,-420.0,0.00032876,5]
[361927084,1747894253041,-420.0,0.00032876,5]
[361927085,1747894253052,-420.0,0.00032876,5]
[361927086,1747894253062,-1360.98,0.00032876,5]
[361927087,1747894253072,-1037.27,0.00032876,5]
[361927088,1747894253082,-420.0,0.00032876,5]
[361927089,1747894253092,-420.0,0.00032876,5]
[361927090,1747894253102,-420.0,0.00032876,5]
[361927091,1747894253112,-423.42209903,0.00032876,5]
[361927092,1747894253123,-420.0,0.00032876,5]
[361927093,1747894253133,-1289.25,0.00032876,5]
[361927094,1747894253146,-151.0,0.00032876,7]
[361927095,1747894253155,-151.0,0.00032876,7]
[361927096,1747894253166,-151.0,0.00032876,7]
[361927097,1747894253176,-1337.63,0.00032876,5]
[361927098,1747894253187,-420.0,0.00032876,5]
[361927099,1747894253197,-421.26077462,0.00032876,5]
[361927100,1747894253207,-420.70347155,0.00032876,5]
[361927101,1747894253217,-807.38,0.00032876,5]
[361927102,1747894253228,-1146.8,0.00032876,5]
[361927103,1747894253238,-420.0,0.00032876,5]
[361927104,1747894253248,-882.25,0.00032876,5]
[361927105,1747894253259,-420.0,0.00032876,5]
[361927106,1747894253268,-151.0,0.00032876,7]
[361927107,1747894253278,-1497.05,0.00032876,5]
[361927108,1747894253288,-151.0,0.00032876,7]
[361927109,1747894253298,-422.15203194,0.00032876,5]
[361927110,1747894253310,-420.0,0.00032876,5]
[361927111,1747894253319,-801.96,0.00032876,5]
[361927112,1747894253330,-420.0,0.00032876,5]
[361927113,1747894253340,-151.0,0.00032876,7]
[361927114,1747894253350,-420.0,0.00032876,5]
[361927115,1747894253360,-420.0,0.00032876,5]
[361927116,1747894253370,-420.0,0.00032876,5]
[361927117,1747894253380,-420.0,0.00032876,5]
[361927118,1747894253390,-420.0,0.00032876,5]
[361927119,1747894253400,-800.24,0.00032876,5]
[361927120,1747894253410,-420.0,0.00032876,5]
[361927121,1747894253420,-1418.96,0.00032876,5]
[361927122,1747894253430,-420.0,0.00032876,5]
[361927123,1747894253440,-420.0,0.00032876,5]
[361927124,1747894253451,-420.0,0.00032876,5]
[361927125,1747894253462,-837.28,0.00032876,5]
[361927126,1747894253472,-420.0,0.00032876,5]
[361927127,1747894253483,-420.0,0.00032876,5]
[361927128,1747894253492,-1014.17,0.00032876,5]
[361927129,1747894253502,-785.93,0.00032876,5]
[361927130,1747894253512,-151.0,0.00032876,7]
[361927131,1747894253523,-966.31,0.00032876,5]
[361927132,1747894253533,-420.0,0.00032876,5]
[361927133,1747894253543,-1584.41,0.00032876,5]
[361927134,1747894253553,-420.0,0.00032876,5]
[361927135,1747894253562,-502.27653352,0.00032876,5]
[361927136,1747894253572,-423.1210803,0.00032876,5]
[361927137,1747894253582,-420.0,0.00032876,5]
[361927138,1747894253592,-420.0,0.00032876,5]
[361927139,1747894253601,-734.53,0.00032876,5]
[361927140,1747894253611,-420.0,0.00032876,5]
[361927141,1747894253620,-420.0,0.00032876,5]
[361927142,1747894253630,-420.0,0.00032876,5]
[361927143,1747894253640,-152.054811,0.00032876,7]
[361927144,1747894253650,-420.0,0.00032876,5]
[361927145,1747894253660,-1178.45,0.00032876,5]
[361927146,1747894253670,-730.1,0.00032876,5]
[361927147,1747894253680,-1402.6,0.00032876,5]
[361927148,1747894253689,-1575.42,0.00032876,5]
[361927149,1747894253699,-422.04674045,0.00032876,5]
[361927150,1747894253709,-420.0,0.00032876,5]
[361927151,1747894253720,-420.0,0.00032876,5]
[361927152,1747894253730,-421.26042994,0.00032876,5]
[361927153,1747894253740,-490.59,0.00032876,5]
[361927154,1747894253750,-455.06,0.00032876,5]
[361927155,1747894253760,-1302.87,0.00032876,5]
[361927156,1747894253770,-420.0,0.00032876,5]
[361927157,1747894253780,-1063.84,0.00032876,5]
[361927158,1747894253791,-420.0,0.00032876,5]
[361927159,1747894253801,-1260.72,0.00032876,5]
[361927160,1747894253811,-420.0,0.00032876,5]
[361927161,1747894253821,-1799.25,0.00032876,5]
[361927162,1747894253831,-2615.19,0.00032876,5]
[361927163,1747894253841,-421.15655192,0.00032876,5]
[361927164,1747894253852,-420.0,0.00032876,5]
[361927165,1747894253862,-420.0,0.00032876,5]
[361927166,1747894253873,-420.0,0.00032876,5]
[361927167,1747894253883,-420.0,0.00032876,5]
[361927168,1747894253894,-612.94,0.00032876,5]
[361927169,1747894253904,-469.41,0.00032876,5]
[361927170,1747894253914,-422.76563677,0.00032876,5]
[361927171,1747894253924,-420.0,0.00032876,5]
[361927172,1747894253934,-420.0,0.00032876,5]
[361927173,1747894253944,-420.0,0.00032876,5]